Cogmind - Beta 17 @@@ ROGUE MODE // 2026.08.07 @ 10:06:40 Player: Retknock Result: Destroyed by L-41 Fighter with Axe Performance ------------- Evolutions (3) 1500 Regions Visited (5) 1000 Robots Destroyed (80) 400 Value Destroyed (2661) 2661 Prototype IDs (0) 0 Alien Tech Used (0) 0 Bonus (-81) -81 TOTAL SCORE: 5480 Bonus ------- Friendly Fire -81 Cogmind --------- Core Integrity 0/700 Matter 165/300 Energy 100/100 System Corruption 12% Temperature Hot (265) Movement Core (1400) Ox27 Location -7/Storage Parts ------- > --- POWER (2) -------- (None) > --- PROPULSION (4) --- (None) > --- UTILITY (5) ------ Huge Storage Unit Machine Analyzer Hacking Suite > --- WEAPON (2) ------- Remote Datajack > --- INVENTORY (25) --- Light Nuclear Core Advanced Treads Improved Carbon-fiber Leg Improved Carbon-fiber Leg Improved Titanium Leg Improved Titanium Leg Improved Titanium Leg Improved Titanium Leg Improved Titanium Leg Wheel Improved Heat Sink Structural Scanner Target Analyzer Improved Light Armor Plating Peak State ------------ > --- POWER ------------ Improved Deuterium Engine Micro Nuclear Core > --- PROPULSION ------- Armored Treads Advanced Treads Armored Huge Wheel > --- UTILITY ---------- Huge Storage Unit Makeshift Light Armor Plating Makeshift Light Armor Plating Hacking Suite System Shield > --- WEAPON ----------- Plasma Cannon Gauss Rifle > --- INVENTORY -------- Light Deuterium Engine Titanium Leg Titanium Leg Titanium Leg Titanium Leg Improved Carbon-fiber Leg Improved Carbon-fiber Leg Improved Carbon-fiber Leg Improved Heat Sink Improved Heat Sink Improved Heat Sink Structural Scanner Machine Analyzer Kinecellerator Core Shielding Hardened Light Armor Plating Hardened Light Armor Plating Hardened Medium Armor Plating Improved Medium Armor Plating Heavy Particle Cannon Heavy Particle Cannon Subdweller Machine Gun Gauss Cannon Gauss Cannon [Rating: 52] Favorites ----------- Power Micro Nuclear Core Engine Light Ion Engine Power Core Micro Nuclear Core Propulsion Wheel Treads Advanced Treads Leg Improved Carbon-fiber Leg Wheel Wheel Utility Huge Storage Unit Device Seismic Detector Storage Huge Storage Unit Processor Machine Analyzer Hackware Hacking Suite Protection Makeshift Light Armor Plating Weapon Shotgun Energy Gun Medium Laser Energy Cannon Plasma Cannon Ballistic Gun Shotgun Ballistic Cannon Gauss Cannon Launcher EMP Blaster Special Weapon Welding Torch Build | -11 -10 -10 -8 -7 -7 ------- Run | Yrd Mat Sub Mat Fac Sto Slots Evolved 6 | . . . 4 2 . Power 1 | . . . . 1 . Propulsion 2 | . . . 1 1 . Utility 3 | . . . 3 . . Weapon . | . . . . . . Parts Attached 100 | 7 5 15 16 24 33 Power 22 | 1 1 3 3 5 9 Engine 14 | 1 1 3 3 1 5 Core 8 | . . . . 4 4 Reactor . | . . . . . . Propulsion 27 | 2 . 2 8 6 9 Treads 11 | . . . 3 1 7 Leg 4 | . . . . 4 . Wheel 12 | 2 . 2 5 1 2 Hover . | . . . . . . Flight . | . . . . . . Utility 21 | 2 3 5 3 5 3 Device 5 | 1 . 1 2 . 1 Storage 2 | 1 1 . . . . Processor 1 | . . . . . 1 Hackware 2 | . . . . 2 . Protection 11 | . 2 4 1 3 1 Artifact . | . . . . . . Weapon 30 | 2 1 5 2 8 12 Energy Gun 6 | 1 . . . . 5 Energy Cannon 5 | . . . 2 2 1 Ballistic Gun 12 | 1 . 4 . 4 3 Ballistic Cannon 3 | . . . . 2 1 Launcher 2 | . 1 1 . . . Special Weapon 2 | . . . . . 2 Impact Weapon . | . . . . . . Slashing Weapon . | . . . . . . Piercing Weapon . | . . . . . . Special Melee Weapon . | . . . . . . Unidentified Prototypes . | . . . . . . Corrupted Parts 1 | . 1 . . . . System Corruption 2 | . 2 . . . . Parts Lost 46 | . 1 8 1 12 24 Power 15 | . 1 2 1 4 7 Propulsion 10 | . . 2 . 1 7 Utility 10 | . . 1 . 4 5 Weapon 11 | . . 3 . 3 5 Highest Loss Streak 13 | . 1 5 1 3 13 To Critical Strikes 1 | . . 1 . . . Average Backups 21 | 4 15 23 23 22 23 Power 1 | 1 2 3 3 . . Propulsion 5 | 2 4 3 3 7 7 Utility 8 | . 5 8 8 9 9 Weapon 5 | 1 3 7 8 5 5 Tool/Special . | . . . . . . Unused Backups 42 | . 5 4 12 1 20 Power 5 | . . . 3 . 2 Propulsion 14 | . 2 . 2 . 10 Utility 13 | . . 1 4 . 8 Weapon 9 | . 3 2 3 1 . Tool/Special 1 | . . 1 . . . Average Slot Usage (%) 95 | . 100 99 99 90 90 Engine 9 | . 14 13 9 6 4 Core 3 | . . . . 6 8 Treads 7 | . . . 9 13 16 Wheel 17 | . 28 27 17 6 6 Device 9 | . 9 9 17 5 4 Storage 10 | . 14 14 9 7 7 Hackware 3 | . . . . 8 7 Protection 11 | . 4 4 17 15 16 Energy Gun 3 | . 14 1 . . 3 Energy Cannon 1 | . . . 2 4 . Ballistic Gun 11 | . 2 24 15 6 5 Ballistic Cannon 1 | . . . . 2 4 Launcher 2 | . 11 1 . . . Peak Build Rating 52 | 7 12 20 33 52 48 Average Rating 28 | 5 10 14 28 45 44 On Entrance 19 | . 7 11 20 32 45 Avg Prop Armor Cover (%) 13 | . . . . 13 12 Naked Turns . | . . . . . . Heaviest Build 126 | 12 94 97 104 126 121 Greatest Support 88 | 20 20 20 70 78 88 Greatest Overweight (x) 11 | 1 4 9 2 5 11 Average Overweight (x) 2 | . 2 4 1 3 3 Largest Inventory Capacity 25 | 8 25 25 25 25 25 Average Capacity 23 | 7 20 25 25 25 25 Most Carried 25 | 8 21 25 25 25 25 Average Carried 21 | 5 15 23 23 22 23 Final Capacity 25 | 8 25 25 25 25 25 Final Carried 25 | 8 21 24 25 25 14 Class Distribution -------------------- 82% | Mutant 9% | Hacker-Mutant 4% | Derelict-Mutant 3% | Scavenger-Mutant Dominant Class ---------------- Mutant | -10/Materials Mutant | -10/Subcaves Mutant | -8/Materials Mutant | -7/Factory Mutant | -7/Storage Resources | -11 -10 -10 -8 -7 -7 ----------- Run | Yrd Mat Sub Mat Fac Sto Matter Collected 2866 | 282 102 344 384 844 910 Remotely . | . . . . . . Salvage Created 2510 | 129 302 111 364 745 859 Parts 174 | 12 30 6 32 41 53 Haulers Intercepted . | . . . . . . Recyclers Shooed 5 | 1 . . . 2 2 Parts Field Recycled . | . . . . . . Retrieved Matter . | . . . . . . Parts Self-Destructed 22 | . . 22 . . . Prevented . | . . . . . . Parts Restored . | . . . . . . Kills | -11 -10 -10 -8 -7 -7 ------- Run | Yrd Mat Sub Mat Fac Sto Combat Hostiles Destroyed 65 | . 9 3 10 22 21 Guns 38 | . 1 3 7 13 14 Cannons 19 | . . . 3 9 7 AOE 8 | . 8 . . . . Classes Destroyed 13 | 2 4 1 1 5 . Worker 2 | . . . . 1 1 Builder 5 | . 1 . . . 4 Tunneler 4 | 3 . . 1 . . Recycler 2 | 1 . . . 1 . Mechanic 1 | . . . . 1 . Watcher 1 | . 1 . . . . Swarmer 22 | . 6 . 4 8 4 Grunt 22 | . 3 . 3 8 8 Duelist 1 | . . . . 1 . Sentry 10 | . . . 3 1 6 Hunter 2 | . . . . 2 . Programmer 5 | . . . . 2 3 Subdweller 3 | . . 3 . . . Best Kill Streak 5 | 3 3 2 5 5 5 Combat Bots Only 5 | . 3 2 5 4 4 Max Kills in Single Turn 2 | 1 2 1 1 1 2 Gunslinging . | . . . . . . Exploded 2 | . 2 . . . . Melee . | . . . . . . Uniques/NPCs Destroyed . | . . . . . . Combat | -11 -10 -10 -8 -7 -7 -------- Run | Yrd Mat Sub Mat Fac Sto Hostile Shots Fired 805 | . 28 28 49 258 442 Missed 189 | . 10 3 9 68 99 Hits 616 | . 18 25 40 190 343 Melee 36 | . . . . 3 33 Projectile 580 | . 18 25 40 187 310 Critical Strikes 20 | . 1 2 . 1 16 Actively Blocked 2 | . . . . . 2 Part Disruptions 1 | . . . . 1 . Damage Taken 8137 | . 355 797 470 2477 4038 Core 976 | . 73 148 51 285 419 Absorbed by Shields 676 | . . . . . 676 Redirected to Shielding 104 | . . . 30 33 41 Regen/Repaired (Parts) 408 | . . . 30 . 378 Core Remaining (%) 67 | 100 . 11 90 . . Volleys Fired 255 | 12 13 18 41 84 87 Largest 2 | 2 2 2 2 2 2 Hottest 155 | 70 83 83 108 120 155 Shots Fired 468 | 24 22 34 71 151 166 Gun 330 | 24 13 29 56 98 110 Cannon 120 | . . . 15 53 52 Launcher 14 | . 9 5 . . . Special 4 | . . . . . 4 Kinetic 333 | 12 . 26 56 125 114 Thermal 114 | 12 13 3 15 26 45 Explosive . | . . . . . . Electromagnetic 19 | . 9 5 . . 5 Robot Hit Streak 13 | 5 7 10 13 12 10 Robot Miss Streak 13 | 2 3 3 13 13 13 Penetration Max 1 | . . . . 1 . Secondary Targets 1 | . . . . 1 . Max Gunslinging Chain 1 | . . . . 1 . Shots Hit Robots 315 | 10 11 28 40 107 119 Core Hits 226 | 6 13 10 19 82 96 Critical Kills . | . . . . . . Critical Parts Destroyed . | . . . . . . Critical Strikes 9 | . . 1 . 3 5 Burn 1 | . . 1 . . . Blast 8 | . . . . 3 5 Melee Attacks . | . . . . . . Impact . | . . . . . . Slashing . | . . . . . . Piercing . | . . . . . . Sneak Attacks . | . . . . . . Combat Hostiles . | . . . . . . Follow-up Attacks . | . . . . . . Damage Inflicted 6581 | 112 351 552 827 2104 2635 Guns 4254 | 112 97 414 577 1240 1814 Cannons 1935 | . . . 250 864 821 Explosions 392 | . 254 138 . . . Melee . | . . . . . . Ramming . | . . . . . . Kinetic 4390 | 37 . 377 577 1715 1684 Thermal 1777 | 75 109 37 250 389 917 Explosive . | . . . . . . Electromagnetic 414 | . 242 138 . . 34 Impact . | . . . . . . Slashing . | . . . . . . Piercing . | . . . . . . Highest Corruption 12 | . 2 3 1 6 12 Average Corruption 3 | . 2 2 1 4 7 Corruption Purged . | . . . . . . Corruption Blocked . | . . . . . . Effects 125 | . 14 39 7 25 40 Message Errors 22 | . 2 9 1 3 7 Matter Fused 27 | . 7 5 3 3 9 Heat Flow Errors 18 | . 2 7 . 4 5 Energy Discharges 14 | . 1 5 1 4 3 Parts Rejected 3 | . . . . 1 2 Parts Fused 3 | . . 1 1 1 . Data Loss (minor) 17 | . 1 4 1 3 8 Data Loss (major) 9 | . 1 6 . 2 . Misfires 5 | . . 1 . 1 3 Alerts 4 | . . 1 . 1 2 Weapon Failures 3 | . . . . 2 1 Overload Shots . | . . . . . . Overflow Damage 9 | . . . . 9 . Projectiles 9 | . . . . 9 . Explosions . | . . . . . . Melee . | . . . . . . Knockbacks 11 | . . . . 7 4 Impact . | . . . . . . Kinetic 10 | . . . . 7 3 Secondary 1 | . . . . . 1 Self-Inflicted Damage 307 | . 184 61 . . 62 Shots 15 | . 9 4 . . 2 Rammed . | . . . . . . Targets Rammed . | . . . . . . Kicked . | . . . . . . Crushed . | . . . . . . Highest Temperature 540 | 50 241 260 282 372 540 Average Temperature 119 | 25 65 109 81 110 153 Received Heat Transfer 1611 | . 60 168 135 357 891 Effects 21 | . . . 1 3 17 Shutdowns 7 | . . . . . 7 Energy Bleed 2 | . . . 1 1 . Interference 8 | . . . . 2 6 Short Circuit 2 | . . . . . 2 Damage (minor) 2 | . . . . . 2 Siege Activations . | . . . . . . Martial Activations . | . . . . . . Shielding Activations . | . . . . . . Robots Disrupted . | . . . . . . Combat Hostiles . | . . . . . . Robots Corrupted . | . . . . . . Combat Hostiles . | . . . . . . Parts Fried . | . . . . . . Impact Corruptions . | . . . . . . Robots Melted . | . . . . . . Combat Hostiles . | . . . . . . Parts Melted 5 | . . 1 1 1 2 Heat Transferred 3682 | 222 346 185 333 724 1872 Parts Sabotaged . | . . . . . . Parts Stolen . | . . . . . . Parts Stripped . | . . . . . . Power Chain Reactions 4 | . 3 1 . . . Alert | -11 -10 -10 -8 -7 -7 ------- Run | Yrd Mat Sub Mat Fac Sto Maximum Alert Level . | . . . . . . Low Security (%) 100 | 100 100 . 100 100 100 Level 1 . | . . . . . . Level 2 . | . . . . . . Level 3 . | . . . . . . Level 4 . | . . . . . . Level 5 . | . . . . . . High Security . | . . . . . . Max Security . | . . . . . . Peak Influence 151 | 10 102 . 98 124 151 Initial 37 | . . . . 1 37 Average 40 | 1 22 . 27 53 58 Influence Increases 1869 | 20 285 . 271 626 667 Destroy 0b10 Robot/C 1240 | . 180 . 200 440 420 Destroy 0b10 Robot/NC 75 | 20 10 . 5 15 25 Destroy Leader 292 | . 32 . 50 90 120 Successful Hack 35 | . 4 . 9 . 22 Disable Machine 75 | . 15 . . 15 45 Destroy Structure 62 | . 14 . 7 6 35 Lose Combat Pursuer 90 | . 30 . . 60 . Influence Decreases 1842 | 20 285 . 267 547 723 Entered New Map 49 | . . . . 3 46 Time Decay 1445 | 20 275 . 257 434 459 Lost Part 348 | . 10 . 10 110 218 Squads Dispatched 22 | . 2 . 3 12 5 Investigation 6 | . 2 . 1 2 1 Extermination 6 | . . . . 3 3 Reinforcement 4 | . . . 2 1 1 Assault . | . . . . . . Garrison 6 | . . . . 6 . Intercept . | . . . . . . Searches Triggered . | . . . . . . Construction Impeded . | . . . . . . Haulers Reinforced . | . . . . . . Active Scanning Responses . | . . . . . . Cargo Convoy Interrupts . | . . . . . . Stealth | -11 -10 -10 -8 -7 -7 --------- Run | Yrd Mat Sub Mat Fac Sto Distress Signals 4 | . . . . 2 2 Communications Jammed . | . . . . . . Distress Signals . | . . . . . . Times Spotted 107 | . 14 10 16 34 33 Peak Tracking Total 6 | . 4 2 4 4 6 Tactical Retreats 7 | . 1 2 . 4 . Traps | -11 -10 -10 -8 -7 -7 ------- Run | Yrd Mat Sub Mat Fac Sto Traps Triggered 10 | . 2 3 1 1 3 Indirectly 1 | . 1 . . . . Trap Hack Attempts . | . . . . . . Triggered . | . . . . . . Disarmed . | . . . . . . Reprogrammed . | . . . . . . Reused . | . . . . . . Traps Extracted . | . . . . . . Installed . | . . . . . . Triggered . | . . . . . . Machines | -11 -10 -10 -8 -7 -7 ---------- Run | Yrd Mat Sub Mat Fac Sto Machines Disabled 5 | . 1 . . 1 3 Max in Single Turn 2 | . 1 . . 1 2 Machines Repaired . | . . . . . . Machines Dismantled . | . . . . . . Machines Sabotaged . | . . . . . . Overloaded Fab Kills . | . . . . . . Hacking | -11 -10 -10 -8 -7 -7 --------- Run | Yrd Mat Sub Mat Fac Sto Machines Accessed 16 | . 3 . 4 4 5 Terminals 9 | . 3 . 2 1 3 Fabricators . | . . . . . . Repair Stations 3 | . . . 1 . 2 Recycling Units 2 | . . . 1 1 . Scanalyzers 1 | . . . . 1 . Garrison Access 1 | . . . . 1 . Total Hacks 43 | . 3 . 8 15 17 Successful 31 | . 2 . 5 13 11 Failed 12 | . 1 . 3 2 6 Catastrophic 4 | . . . 1 1 2 Database Lockouts . | . . . . . . Manual 6 | . . . 3 1 2 Terminals 14 | . 3 . 3 1 7 Fabricators . | . . . . . . Repair Stations 13 | . . . 3 . 10 Recycling Units 3 | . . . 2 1 . Scanalyzers 11 | . . . . 11 . Garrison Access 2 | . . . . 2 . Terminal Hacks 3 | . 2 . . . 1 Record 1 | . 1 . . . . Open Door 1 | . . . . . 1 Locate Traps 1 | . 1 . . . . Fabricator Hacks . | . . . . . . Repair Station Hacks 12 | . . . 3 . 9 Scan Component 7 | . . . 2 . 5 Repair 5 | . . . 1 . 4 Recycling Unit Hacks 2 | . . . 1 1 . Process 1 | . . . 1 . . Retrieve Matter 1 | . . . . 1 . Scanalyzer 11 | . . . . 11 . Insert Component 6 | . . . . 6 . Analyze 5 | . . . . 5 . Garrison Access Hacks . | . . . . . . Unauthorized Hacks 3 | . . . 1 1 1 Terminals 3 | . . . 1 1 1 Botnet 3 | . . . 1 1 1 Fabricators . | . . . . . . Repair Stations . | . . . . . . Recycling Units . | . . . . . . Scanalyzers . | . . . . . . Garrison Access . | . . . . . . Data Cores Recovered . | . . . . . . Used . | . . . . . . Hacking Detections 11 | . 2 . 2 3 4 Full Trace Events 5 | . . . 2 2 1 Feedback Events . | . . . . . . Feedback Blocked . | . . . . . . Robot Schematics Acquired . | . . . . . . Robots Built . | . . . . . . Authchips . | . . . . . . Time . | . . . . . . Total Robot Build Rating . | . . . . . . Part Schematics Acquired 5 | . . . . 5 . Parts Built . | . . . . . . Authchips . | . . . . . . Time . | . . . . . . Total Part Build Rating . | . . . . . . Part Studies Acquired . | . . . . . . Parts Repaired 5 | . . . 1 . 4 Time 150 | . . . 32 . 118 Parts Recycled . | . . . . . . Recycled Matter 9 | . . . 9 . . Retrieved Matter 109 | . . . . 109 . Retrieved Components . | . . . . . . Parts Scanalyzed 5 | . . . . 5 . Part Schematics Acquired 5 | . . . . 5 . Parts Damaged 1 | . . . . 1 . Bothacking | -11 -10 -10 -8 -7 -7 ------------ Run | Yrd Mat Sub Mat Fac Sto Used RIF Installer . | . . . . . . Robots Hacked 2 | . . . . . 2 Non-combat . | . . . . . . Combat 2 | . . . . . 2 Robot Hacks Applied 2 | . . . . . 2 parse_system 2 | . . . . . 2 Relay Couplers Released . | . . . . . . Fabnet Peak Effective % . | . . . . . . Robots Rewired . | . . . . . . Allies Hacked . | . . . . . . Hacks Repelled . | . . . . . . Allies | -11 -10 -10 -8 -7 -7 -------- Run | Yrd Mat Sub Mat Fac Sto Total Allies . | . . . . . . Largest Group . | . . . . . . Highest-Rated Group . | . . . . . . Highest-Rated Ally . | . . . . . . Total Orders . | . . . . . . Ally Attacks . | . . . . . . Total Damage . | . . . . . . Kills . | . . . . . . Allies Corrupted . | . . . . . . Allies Melted . | . . . . . . Intel | -11 -10 -10 -8 -7 -7 ------- Run | Yrd Mat Sub Mat Fac Sto Active Infowar (turns) 3554 | 27 891 1007 1113 477 39 Optics 2 | . . 2 . . . Structural 1590 | . . . 1113 477 . Seismic 1923 | 27 891 1005 . . . Machine Analysis 39 | . . . . . 39 Robot Analysis Total . | . . . . . . Derelict Logs Recovered 1 | . . 1 . . . Drone Launches . | . . . . . . Drone Recoveries . | . . . . . . Exploration | -11 -10 -10 -8 -7 -7 ------------- Run | Yrd Mat Sub Mat Fac Sto Turns Passed 6972 | 127 1295 1552 1113 1546 1339 Spaces Moved 3803 | 91 1008 963 537 680 524 Core 10 | 10 . . . . . Treads 279 | . . . 134 50 95 Legs 86 | . . . . 86 . Wheels 3428 | 81 1008 963 403 544 429 Hover . | . . . . . . Flight . | . . . . . . Fastest Speed 50 | 50 80 140 109 130 116 Average Speed 142 | 78 118 141 143 172 163 Slowest Speed 545 | 100 140 215 233 545 245 Overloaded Moves . | . . . . . . Propulsion Burnouts . | . . . . . . Robots Hopped . | . . . . . . Potential Cave-ins . | . . . . . . Cave-ins Triggered . | . . . . . . Exploration Rate (%) 38 | 5 78 42 37 12 55 Regions Visited 5 Branch Regions 2 Pre-discovered Areas . | . . . . . . Known Exits Taken 1 | . . . 1 . . Unknown Exits Taken 4 | 1 1 1 . 1 . Scrap Searched 8 | . . 8 . . . Spaces Dug 7 | . . . 6 1 . Terrain Destroyed 68 | . 14 3 7 6 38 Melee . | . . . . . . Projectile 36 | . . . 7 6 23 AOE 32 | . 14 3 . . 15 Terrain Rammed . | . . . . . . Walls Destroyed . | . . . . . . Machines Disabled . | . . . . . . Actions | -11 -10 -10 -8 -7 -7 --------- Run | Yrd Mat Sub Mat Fac Sto Total 4897 | 124 1084 1120 819 905 845 Wait 491 | . 31 95 169 72 124 Move 3798 | 90 1007 962 536 679 524 Hop . | . . . . . . Pick Up 140 | 15 19 19 30 24 33 Fast Attach 7 | . 1 . 1 1 4 Attach 79 | 7 1 9 10 20 32 Detach 5 | . . . . 2 3 Swap 42 | . 5 8 8 9 12 Drop 79 | . 7 8 24 14 26 Fire 255 | 12 13 18 41 84 87 Melee . | . . . . . . Ram . | . . . . . . Kick . | . . . . . . Crush . | . . . . . . Escape Stasis . | . . . . . . Rewire 1 | . . 1 . . . Trap . | . . . . . . Miscellaneous . | . . . . . . Route ------- -11/Scrapyard -10/Materials (discovered 5 exits: [*Mat x3] / [*Min] / [*Sub]) -10/Subcaves -8/Materials -7/Factory -7/Storage History --------- Turn | Location | Event 9 | -11/Scrapyard | Discovered new exit (range 16) 128 | -11/Scrapyard | Entered Materials 219 | -10/Materials | Discovered new exit (range 7) 315 | -10/Materials | Build established: Mutant 452 | -10/Materials | Discovered new exit (range 13) 946 | -10/Materials | Discovered new exit (range 12) 1201 | -10/Materials | Discovered new exit (range 16) 1248 | -10/Materials | Discovered new exit (range 12) 1423 | -10/Materials | Entered Subcaves 1599 | -10/Subcaves | Shifting Twisted Machinery released Mak. Light Armor Plating 1602 | -10/Subcaves | Shifting Twisted Machinery released Sub. Power Source 1615 | -10/Subcaves | Core integrity fell below 50% 2056 | -10/Subcaves | Learned 2 Materials zone layouts 2511 | -10/Subcaves | Shifting Twisted Machinery released Mak. Light Armor Plating 2548 | -10/Subcaves | Shifting Twisted Machinery released Sub. Power Source 2571 | -10/Subcaves | Discovered new exit (range 10) 2612 | -10/Subcaves | Core integrity fell below 20% 2638 | -10/Subcaves | Lost 5 parts (1p1n1u2w) 2757 | -10/Subcaves | Shifting Twisted Machinery released Unknown Energy Cannon 2757 | -10/Subcaves | Shifting Twisted Machinery released Sub. Machine Gun 2975 | -10/Subcaves | Entered Materials 2975 | -8/Materials | Evolved 4 slots: Propulsion x1, Utility x3 2976 | -8/Materials | Identified exit to Factory 3514 | -8/Materials | Repaired Sub. Monowheel 4088 | -8/Materials | Entered Factory 4088 | -7/Factory | Evolved 2 slots: Power x1, Propulsion x1 4328 | -7/Factory | Garrison activated, responded to threat 4650 | -7/Factory | Garrison activated, responded to threat 4659 | -7/Factory | Lost 3 parts (1p1n1w) 4878 | -7/Factory | Build established: Hacker-Mutant 5530 | -7/Factory | Build established: Mutant 5554 | -7/Factory | Discovered new exit (range 15) 5634 | -7/Factory | Entered Storage 5774 | -7/Storage | Repaired Arm. Huge Wheel 6149 | -7/Storage | Core integrity fell below 50% 6651 | -7/Storage | Lost 3 parts (2p1n) 6784 | -7/Storage | Repaired Core Shielding 6784 | -7/Storage | Repaired Hrd. Light Armor Plating 6822 | -7/Storage | Repaired Adv. Treads 6945 | -7/Storage | System corruption reached 10% 6950 | -7/Storage | Core integrity fell below 20% 6973 | -7/Storage | Destroyed by L-41 Fighter with Axe Last Messages --------------- 06959_ Overheating: Adv. Treads damaged (-41). 06960_ Imp. Light Armor Plating destroyed. 06961_ Hvy. Particle Cannon severed. 06962_ Gatling Laser destroyed. 06963_ Hvy. Particle Cannon severed. 06964_ Adv. Treads broken. 06964_ Overheating: Short circuit. 06965_ Jacked L-41 Fighter... >>parse_system Reading system data... New IDs: Carbon-fiber Leg [Achievement: Analysis Probe] 06965_ Adv. Treads destroyed. 06966_ Jacked L-41 Fighter... >>parse_system Reading system data... 06971_ Broken Adv. Treads destroyed. 06971_ Lgt. Angular Momentum Engine destroyed. 06972_ M-13 Machinist repairs L-41 Fighter. Map ----- +----------------------------------------------------+ | # #??????????? #???????????????????????????? | | # #??????????? #???????????????????????????? | | #???????#### #? ????????????????????????? | | ####+######???# # ????????????????????????? | | #???# # ?????????????????????????? | | ] ##### + ??????????????????????????? | | + #???????????????????????????? | | ]##### #???????????????????????????? | | #???# #???????????????????????????? | | #???# #???????????????????????????? | | ] #??## ##??????????????????????????? | | #########"####"= #??????????????????????????? | | ??????# ! #??????????????????????????? | | ??????# #??????????????????????????? | | ??????# #??????????????????????????? | | ?????#######+""## #??????????????????????????? | | ?????# """" ### ####????????????????????????? | | ?????#####T!|= #?# ## ????????????????????????? | | ????????### =##?# ## ????????????????????????? | | ????????# !!#?# ## "????????????????????????? | | ????????#= ===#?# ## "????????????????????????? | | ????????# =!|#?# ## "????????????????????????? | | ????????# !]#?# ##|""???????????????????????? | | ????????########?# ##!!""????#?????????????????? | | ?????????????????# a ;#g%["""" #?????????????????? | | ???????########### #;ml@l] #?????????????????? | | ????#### # w #]###+#+###????????????????? | | ?????""" """" # [] #????????????????? | | ?????"T """" / = + ??????????? | | ?????""" """" # !%= # ??????????? | | ???????# """ # ######### #????????????????? | | ???????# ###/#######??????????????????????? | | ???????# # #??????????????????????? | | ???????# # #??????????????????????? | | ???????# # """ """ #??????????????????????? | | ???????###" "#### """ """ #??????????????????????? | | ?????????#"R"#??# """ """ #??????????????????????? | | ?????????#"""#??# #??????????????????????? | | ?????????#####??# #??????????????????????? | | ????????????????# ! #??????????????????????? | | ????????????????##" "######??????????????????????? | | ?????????????????#"T"#???????????????????????????? | | ?????????????????#"""#???????????????????????????? | | ?????????????????#####???????????????????????????? | | ?????????????????????????????????????????????????? | | ?????????????????????????????????????????????????? | | ?????????????????????????????????????????????????? | | ?????????????????????????????????????????????????? | | ?????????????????????????????????????????????????? | | | +----------------------------------------------------+ Best States ------------- Heat Dissipation 34 Energy Generation 27 Energy Capacity 340 Matter Stores 300 Matter Capacity 300 Sight Range 16 Terrain Scan Density 10 Additional Mass Support 6 Armor Coverage 450 Core Shielding 20 Weapon Shielding 33 Evasion (%) 50 Recoil Reduction 4 Offensive Hacking 10 Defensive Hacking 10 Item Schematics ----------------- Battle Cannon | -7/Factory | Scanalyzed Core Shielding | -7/Factory | Scanalyzed Imp. Carbon-fiber Leg | -7/Factory | Scanalyzed Structural Scanner | -7/Factory | Scanalyzed Titanium Leg | -7/Factory | Scanalyzed Robot Schematics ------------------ None Fabricated ------------ Nothing Repaired ---------- Sub. Monowheel | 50% | -8/Materials Arm. Huge Wheel | 6% | -7/Storage Adv. Treads | 14% | -7/Storage Studied --------- None Alien Tech Used ----------------- None Achievements -------------- A Problem For Future Me Analysis Probe More Dakka Please Spot Them First True Hacker Challenges ------------ None Game ------ Seed MetafieldXenonObfuscator Manual? 0 Play Time 01:59:23 Cumulative 14.4 hours Start 2026.08.06 @ 21:20:42 End 2026.08.07 @ 10:06:40 Sessions 3 Manual Loads 0 Difficulty Rogue Special Mode None Game No. 16 Rogue 16 Adventurer 0 Explorer 0 Win Type - Total 0 Types 0/0/0/0/0/0/0/0/0/0 Lore% 8 Gallery% 15 Achievement% 11 Wizard Run 0 Options --------- Layout 2 ASCII 0 Keyboard 0 Movement Mouse Keybinds 0 Fullscreen 1 Font 24/Smallcaps Map View 50x44 Zoom Use 0% Tactical HUD 1 Map Filters NONE Filters NONE Steam 1 RUN: 11482039-c6d6-49d5-be1f-6120105bda4e